Workbook

Sheet Couverture
B7: Projet: | C7: B2B
B8: Numero de projet: 2026
B12: Adresse:
B14: …
B15: …
B16: …
A40: Ing: Oussama Rouchdi
A41: www.oussamarouchdi.com | D41: Contact | E41: n'hesitez pas a me contacter
A42: 2026-12-31

Sheet Mur
A2: Vent:
A4: Ce chapitre présente le calcul de l’action du vent sur un mur conformément aux | J4: Pays | K4: Allemagne | N4: h | O4: 24
A5: prescriptions de l’Eurocode 1 (EN 1991-1-4), relatif aux actions du vent sur les structures. | J5: Zone | K5: 1 | L5: Binnenland | N5: b | O5: 6
A6: L’étude porte sur un bâtiment de hauteur inférieure à 25 mètres, ce qui permet l’application des | J6: Terrain | K6: urbain dense | N6: l | O6: 10
A7: méthodes simplifiées. Les coefficients aérodynamiques sont déterminés en fonction de la
A8: géométrie du bâtiment, de la Les pressions caractéristiques du vent sont ensuite calculées à
A9: l’aide de la pression de base du vent et des coefficients Cpe permettant une évaluation précise
A10: des efforts transmis à la structure. La valeur de base de la vitesse du vent est déterminée
A11: conformément à la zone définie par la réglementation locale.
A12: Valeur de base de la vitesse du vent | D12: =IF(K4="Allemagne",VLOOKUP(Mur!K5,W_daten!A4:C7,2,FALSE), IF(K4="Maroc",VLOOKUP(Mur!K5,W_daten!I3:L7,2,FALSE),"")) -> 22.5 | E12: kN/m²
A13: Pression dynamique de base : | C13: =IF(K4="Allemagne",VLOOKUP(Mur!K5,W_daten!A4:C7,3,FALSE), IF(K4="Maroc",VLOOKUP(Mur!K5,W_daten!I3:L7,3,FALSE),"")) -> 0.32 | D13: kN/m²
A15: Les dimensions du bâtiment
A17: Hauteur du bâtiment: | C17: =O4 -> 24
A18: Largeur du bâtiment: | C18: =O5 -> 6
A19: Longuer du bâtiment: | C19: =O6 -> 10
A21: Pression dynamique du vent simplifiée pour les bâtiments: | F21: =W_daten!L15 -> 0.75
A22: L’action du vent sera analysée selon deux directions principales perpendiculaires :
A24: Cas1: Direction de vent Ө=0°
C25: =C18 -> 6
C26: =C17&" / "&C18&"=" -> 24 / 6= | D26: =ROUND(C17/C18,2) -> 4
D27: =MIN(C19,2*C17) -> 10 | E27: =IF(D27<C25,"e < d", IF(D27>=5*C25,"e ≥ 5 · d", IF(AND(D27>=C25,D27<5*C25),"d ≤ e < 5 · d", ""))) -> d ≤ e < 5 · d
F29: avec
F30: =IF(D27<C25,"da= e/5"&D27&"/"&"5= "&D27/5&"m", IF(D27>=5*C25,"da= d ="&C25&"m", IF(AND(D27>=C25,D27<5*C25),"da= e / 5 = "&D27&"/"&"5 = "&D27/5&"m", ""))) -> da= e / 5 = 10/5 = 2m
A31: D | B31: =IF(D27<C25,"A", IF(D27>=5*C25,"", IF(AND(D27>=C25,D27<5*C25),"A", ""))) -> A | C31: =IF(D27<C25,"B", IF(D27>=5*C25,"A", IF(AND(D27>=C25,D27<5*C25),"B", ""))) -> B | D31: =IF(D27<C25,"C", IF(D27>=5*C25,"", IF(AND(D27>=C25,D27<5*C25),"", ""))) ->  | E31: E | F31: =IF(D27<C25,"db= 4 . e/5= 4 . "&D27&"/"&"/5= "&4*D27/5&"m", IF(D27>=5*C25,"", IF(AND(D27>=C25,D27<5*C25),"db= d - e/5 ="&C25&" - "&D27&"/5 = "&C25-D27/5&"m", ""))) -> db= d - e/5 =6 - 10/5 = 4m
A32: =W_daten!E37*F21 -> 0.6 | B32: =IF(D27<C25,W_daten!E34*F21, IF(D27>=5*C25,"", IF(AND(D27>=C25,D27<5*C25),W_daten!E34*F21, ""))) -> -0.9 | C32: =IF(D27<C25,W_daten!E35*F21, IF(D27>=5*C25,W_daten!E34*F21, IF(AND(D27>=C25,D27<5*C25),W_daten!E35*F21, ""))) -> -0.6 | D32: =IF(D27<C25,W_daten!E36*F21, IF(D27>=5*C25,"", IF(AND(D27>=C25,D27<5*C25),"", ""))) ->  | E32: =W_daten!E38*F21 -> -0.375 | F32: =IF(D27<C25,"dc= d - e = "&D27&"-"&D27&"/5= "&4*C25/5&"m", IF(D27>=5*C25,"", IF(AND(D27>=C25,D27<5*C25),"", ""))) -> 
A50: Cas1: Direction de vent Ө=90°
C51: =C19 -> 10
C52: =C17&" / "&C51&"=" -> 24 / 10= | D52: =ROUND(C17/C51,2) -> 2.4
D53: =MIN(C18,2*C25) -> 6 | E53: =IF(D53<C51,"e < d", IF(D53>=5*C51,"e ≥ 5 · d", IF(AND(D53>=C51,D53<5*C51),"d ≤ e < 5 · d", ""))) -> e < d
F55: avec
F56: =IF(D53<C51,"da= e/5"&D53&"/"&"5= "&D53/5&"m", IF(D53>=5*C51,"da= d ="&C51&"m", IF(AND(D53>=C51,D53<5*C51),"da= e / 5 = "&D53&"/"&"5 = "&D53/5&"m", ""))) -> da= e/56/5= 1,2m
A57: D | B57: =IF(D53<C51,"A", IF(D53>=5*C51,"", IF(AND(D53>=C51,D53<5*C51),"A", ""))) -> A | C57: =IF(D53<C51,"B", IF(D53>=5*C51,"A", IF(AND(D53>=C51,D53<5*C51),"B", ""))) -> B | D57: =IF(D53<C51,"C", IF(D53>=5*C51,"", IF(AND(D53>=C51,D53<5*C51),"", ""))) -> C | E57: E | F57: =IF(D53<C51,"db= 4 . e/5= 4 . "&D53&"/"&"/5= "&4*D53/5&"m", IF(D53>=5*C51,"", IF(AND(D53>=C51,D53<5*C51),"db= d - e/5 ="&C51&" - "&D53&"/5 = "&C51-D53/5&"m", ""))) -> db= 4 . e/5= 4 . 6//5= 4,8m
A58: =W_daten!K37*F21 -> 0.6 | B58: =IF(D53<C51,W_daten!K34*F21, IF(D53>=5*C51,"", IF(AND(D53>=C51,D53<5*C51),W_daten!K34*F21, ""))) -> -0.9 | C58: =IF(D53<C51,W_daten!K35*F21, IF(D53>=5*C51,W_daten!K34*F21, IF(AND(D53>=C51,D53<5*C51),W_daten!K35*F21, ""))) -> -0.6 | D58: =IF(D53<C51,W_daten!K36*F21, IF(D53>=5*C51,"", IF(AND(D53>=C51,D53<5*C51),"", ""))) -> -0.375 | E58: =W_daten!K38*F21 -> -0.375 | F58: =IF(D53<C51,"dc= d - e = "&D53&"-"&D53&"/5= "&4*C51/5&"m", IF(D53>=5*C51,"", IF(AND(D53>=C51,D53<5*C51),"", ""))) -> dc= d - e = 6-6/5= 8m

Sheet Toit plat
A2: Vent:
A4: Ce chapitre présente le calcul de l’action du vent sur une toiture plate conformément aux prescriptions de | J4: Pays | K4: Allemagne | N4: d | O4: 4
A5: l’Eurocode 1 (EN 1991-1-4), relatif aux actions du vent sur les structures. L’étude porte sur un bâtiment | J5: Zone | K5: 1 | L5: Binnenland | N5: h | O5: 12
A6: de hauteur inférieure à 25 mètres, ce qui permet l’application des méthodes simplifiées. Les coefficients | J6: Terrain | K6: Semi urbain | N6: b | O6: 40
A7: aérodynamiques sont déterminés en fonction de la géométrie du bâtiment, de la direction du vent, ainsi que
A8: de la répartition des zones de pression sur les parois. Les pressions caractéristiques du vent sont ensuite | J8: Avec ou sans acrotère | K8: avec acrotère | N8: NB : J’ai pris en compte dans le calcu juste l la présence ou non d’un acrotère. Vous pouvez développer cela à partir du tableau (qui est déjà prêt).
A9: calculées à l’aide de la pression de base du vent et des coefficients Cpe permettant une évaluation | J9: =IF(K8=W_daten!Q37,"rien à ajouter", IF(K8=W_daten!Q38,"hp en m", IF(K8=W_daten!Q41,"r",IF(K8=W_daten!Q44,"alpha", "")))) -> hp en m | K9: 2
A10: précise des efforts transmis à la structure par la toiture.
A11: La valeur de base de la vitesse du vent est déterminée conformément à la zone définie
A12: Valeur de base de la vitesse du vent | D12: =IF(K4="Allemagne",VLOOKUP('Toit plat'!K5,W_daten!A4:C7,2,FALSE), IF(K4="Maroc",VLOOKUP('Toit plat'!K5,W_daten!I3:L7,2,FALSE),"")) -> 22.5 | E12: kN/m²
A13: Pression dynamique de base : | C13: =IF(K4="Allemagne",VLOOKUP('Toit plat'!K5,W_daten!A4:C7,3,FALSE), IF(K4="Maroc",VLOOKUP('Toit plat'!K5,W_daten!I3:L7,3,FALSE),"")) -> 0.32 | D13: kN/m²
A15: Les dimensions du bâtiment
A17: Hauteur du bâtiment: | C17: =O5 -> 12
A18: Largeur du bâtiment: | C18: =O4 -> 4
A19: Longuer du bâtiment: | C19: =O6 -> 40
A21: Pression dynamique du vent simplifiée pour les bâtiments: | F21: =W_daten!V5 -> 0.65
A22: L’action du vent sera analysée selon deux directions principales perpendiculaires :
A24: Cas1: Direction de vent Ө=0°
C25: e/2= | D25: =MIN(C18,2*C17)/2 -> 2
C27: e/10= | D27: =MIN(C18,2*C17)/10 -> 0.4
C29: F
C30: =W_daten!V50*'Toit plat'!F21 -> -0.78
C34: G | D34: H | E34: I | F34: b= | G34: =C19 -> 40
C35: =W_daten!V51*'Toit plat'!F21 -> -0.52 | D35: =W_daten!V52*'Toit plat'!F21 -> -0.455 | E35: =W_daten!V53*'Toit plat'!F21 -> 0.13
E36: =W_daten!Y50*'Toit plat'!F21 -> -0.39
C40: F
A41: e/4= | B41: =D25/2 -> 1 | C41: =W_daten!V50*'Toit plat'!F21 -> -0.78
D44: d= | E44: =O4 -> 4

Sheet Toit monopente
A2: Vent:
A4: Ce chapitre présente le calcul de l’action du vent sur une toiture monopente conformément aux prescriptions de | J4: Pays | K4: Allemagne | N4: h | O4: 18
A5: l’Eurocode 1 (EN 1991-1-4), relatif aux actions du vent sur les structures. L’étude porte sur un bâtiment | J5: Zone | K5: 3 | L5: Binnenland | N5: d | O5: 12
A6: de hauteur inférieure à 25 mètres, ce qui permet l’application des méthodes simplifiées. Les coefficients | J6: Terrain | K6: Semi urbain | N6: b | O6: 40
A7: aérodynamiques sont déterminés en fonction de la géométrie du bâtiment, de la direction du vent, ainsi que
A8: de la répartition des zones de pression sur les parois. Les pressions caractéristiques du vent sont ensuite
A9: calculées à l’aide de la pression de base du vent et des coefficients Cpe permettant une évaluation | J9: alpha | K9: 15
A10: précise des efforts transmis à la structure par la toiture.
A11: La valeur de base de la vitesse du vent est déterminée conformément à la zone définie
A12: Valeur de base de la vitesse du vent | D12: =IF(K4="Allemagne",VLOOKUP('Toit monopente'!K5,W_daten!A4:C7,2,FALSE), IF(K4="Maroc",VLOOKUP('Toit monopente'!K5,W_daten!I3:L7,2,FALSE),"")) -> 27.5 | E12: kN/m²
A13: Pression dynamique de base : | C13: =IF(K4="Allemagne",VLOOKUP('Toit monopente'!K5,W_daten!A4:C7,3,FALSE), IF(K4="Maroc",VLOOKUP('Toit monopente'!K5,W_daten!I3:L7,3,FALSE),"")) -> 0.47 | D13: kN/m²
A15: Les dimensions du bâtiment
A17: Hauteur du bâtiment: | C17: =O4 -> 18
A18: Largeur du bâtiment: | C18: =O5 -> 12
A19: Longuer du bâtiment: | C19: =O6 -> 40
A21: Pression dynamique du vent simplifiée pour les bâtiments: | F21: =W_daten!V9 -> 1.2
A22: L’action du vent sera analysée selon deux directions principales perpendiculaires :
A24: Cas1: Direction de vent Ө=0°
C27: e/10= | D27: =MIN(O6,2*O4)/10 -> 3.6
C29: F
C30: =W_daten!U71*'Toit monopente'!F21 -> -1.08
C31: =W_daten!V71*'Toit monopente'!F21 -> 0.24
C34: G | D34: H
C35: =W_daten!U72*'Toit monopente'!F21 -> -0.96 | D35: =W_daten!U73*'Toit monopente'!F21 -> -0.36
C36: =W_daten!V72*'Toit monopente'!F21 -> 0.24 | D36: =W_daten!V73*'Toit monopente'!F21 -> 0.24
C39: F
A40: e/4= | B40: =MIN(O6,2*O4)/4 -> 9 | C40: =C30 -> -1.08
C41: =C31 -> 0.24
A46: Cas2: Direction de vent Ө=180°
B49: =C27 -> e/10= | C49: =D27 -> 3.6
C51: F
C52: =W_daten!U88*'Toit monopente'!F21 -> -3
C56: G | D56: H
C57: =W_daten!U89*'Toit monopente'!F21 -> -1.56 | D57: =W_daten!U90*'Toit monopente'!F21 -> -1.08
A61: =A40 -> e/4= | B61: =B40 -> 9 | C61: F
C62: =C52 -> -3
A68: Cas3: Direction de vent Ө=90°
B71: =B49 -> e/10= | C71: =C49 -> 3.6
C73: F
C74: =W_daten!Y88*'Toit monopente'!F21 -> -2.88
C78: G | D78: H | F78: I
C79: =W_daten!Y90*'Toit monopente'!F21 -> -2.28 | D79: =W_daten!Y91*'Toit monopente'!F21 -> -0.96 | F79: =W_daten!Y92*'Toit monopente'!F21 -> -0.84
A83: =A61 -> e/4= | B83: =B61 -> 9 | C83: F
C84: =W_daten!Y89*'Toit monopente'!F21 -> -1.92
C88: e/2= | D88: =MIN(O6,2*O4)/2 -> 18

Sheet Toit à deux versants
A2: Vent:
A4: Ce chapitre présente le calcul de l’action du vent sur une toiture à deux versants conformément aux prescriptions de | J4: Pays | K4: Allemagne | N4: h | O4: 18
A5: l’Eurocode 1 (EN 1991-1-4), relatif aux actions du vent sur les structures. L’étude porte sur un bâtiment | J5: Zone | K5: 4 | L5: Binnenland | N5: d | O5: 12
A6: de hauteur inférieure à 25 mètres, ce qui permet l’application des méthodes simplifiées. Les coefficients | J6: Terrain | K6: Semi urbain | N6: b | O6: 40
A7: aérodynamiques sont déterminés en fonction de la géométrie du bâtiment, de la direction du vent, ainsi que
A8: de la répartition des zones de pression sur les parois. Les pressions caractéristiques du vent sont ensuite
A9: calculées à l’aide de la pression de base du vent et des coefficients Cpe permettant une évaluation | J9: alpha | K9: 7
A10: précise des efforts transmis à la structure par la toiture.
A11: La valeur de base de la vitesse du vent est déterminée conformément à la zone définie
A12: Valeur de base de la vitesse du vent | D12: =IF(K4="Allemagne",VLOOKUP('Toit à deux versants'!K5,W_daten!A4:C7,2,FALSE), IF(K4="Maroc",VLOOKUP('Toit à deux versants'!K5,W_daten!I3:L7,2,FALSE),"")) -> 30 | E12: kN/m²
A13: Pression dynamique de base : | C13: =IF(K4="Allemagne",VLOOKUP('Toit à deux versants'!K5,W_daten!A4:C7,3,FALSE), IF(K4="Maroc",VLOOKUP('Toit à deux versants'!K5,W_daten!I3:L7,3,FALSE),"")) -> 0.56 | D13: kN/m²
A15: Les dimensions du bâtiment
A17: Hauteur du bâtiment: | C17: =O4 -> 18
A18: Largeur du bâtiment: | C18: =O5 -> 12
A19: Longuer du bâtiment: | C19: =O6 -> 40
A21: Pression dynamique du vent simplifiée pour les bâtiments: | G21: =W_daten!V14 -> 1.15
A22: L’action du vent sera analysée selon deux directions principales perpendiculaires :
A24: Cas1: Direction de vent Ө=0°
C27: e/10= | D27: =MIN(O6,O4*2)/10 -> 3.6 | E27: ="=e/10" -> =e/10
C29: F
C30: =W_daten!D89*'Toit à deux versants'!G21 -> -1.955
C31: =W_daten!E89*'Toit à deux versants'!G21 -> 0
C34: G | D34: H | E34: J | G34: I
C35: =W_daten!D90*'Toit à deux versants'!G21 -> -1.38 | D35: =W_daten!D91*'Toit à deux versants'!G21 -> -0.69 | E35: =W_daten!D92*'Toit à deux versants'!G21 -> -0.69 | G35: =W_daten!D93*'Toit à deux versants'!G21 -> 0.23
C36: =W_daten!E90*'Toit à deux versants'!G21 -> 0 | D36: =W_daten!E91*'Toit à deux versants'!G21 -> 0 | E36: =W_daten!E92*'Toit à deux versants'!G21 -> -0.69 | G36: =W_daten!E93*'Toit à deux versants'!G21 -> -0.69
B39: e/4= | C39: =MIN(O6,O4*2)/4 -> 9
C40: =C30 -> -1.955
C41: =C31 -> 0
A43: Cas1: Direction de vent Ө=180°
C45: F
C46: =W_daten!H89*'Toit à deux versants'!G21 -> -1.84 | D46: H
C47: G | D47: =W_daten!H91*'Toit à deux versants'!G21 -> -0.805 | F47: I
C48: =W_daten!H90*'Toit à deux versants'!G21 -> -1.495 | F48: =W_daten!H92*'Toit à deux versants'!G21 -> -0.69
C49: G | F49: I
C50: =C48 -> -1.495 | F50: =F48 -> -0.69
B51: ="e/4 = "&MIN(O5,O4*2)/4 -> e/4 = 3 | C51: F
C52: =C46 -> -1.84
C54: e/10= | D54: =MIN(O5,O4*2)/10 -> 1.2
C56: e/2= | D56: =MIN(O5,O4*2)/2 -> 6
A79: ,

Sheet Toit à deux versants V
A2: Vent:
A4: Ce chapitre présente le calcul de l’action du vent sur une toiture à deux versants conformément aux prescriptions de | J4: Pays | K4: Maroc | N4: h | O4: 18
A5: l’Eurocode 1 (EN 1991-1-4), relatif aux actions du vent sur les structures. L’étude porte sur un bâtiment | J5: Zone | K5: 2 | L5: Binnenland | N5: d | O5: 12
A6: de hauteur inférieure à 25 mètres, ce qui permet l’application des méthodes simplifiées. Les coefficients | J6: Terrain | K6: Semi urbain | N6: b | O6: 40
A7: aérodynamiques sont déterminés en fonction de la géométrie du bâtiment, de la direction du vent, ainsi que
A8: de la répartition des zones de pression sur les parois. Les pressions caractéristiques du vent sont ensuite
A9: calculées à l’aide de la pression de base du vent et des coefficients Cpe permettant une évaluation | J9: alpha | K9: -12
A10: précise des efforts transmis à la structure par la toiture.
A11: La valeur de base de la vitesse du vent est déterminée conformément à la zone définie
A12: Valeur de base de la vitesse du vent | D12: =IF(K4="Allemagne",VLOOKUP('Toit à deux versants V'!K5,W_daten!A4:C7,2,FALSE), IF(K4="Maroc",VLOOKUP('Toit à deux versants V'!K5,W_daten!I3:L7,2,FALSE),"")) -> 41.5 | E12: kN/m²
A13: Pression dynamique de base : | C13: =IF(K4="Allemagne",VLOOKUP('Toit à deux versants V'!K5,W_daten!A4:C7,3,FALSE), IF(K4="Maroc",VLOOKUP('Toit à deux versants V'!K5,W_daten!I3:L7,3,FALSE),"")) -> 1.08 | D13: kN/m²
A15: Les dimensions du bâtiment
A17: Hauteur du bâtiment: | C17: =O4 -> 18
A18: Largeur du bâtiment: | C18: =O5 -> 12
A19: Longuer du bâtiment: | C19: =O6 -> 40
A21: Pression dynamique du vent simplifiée pour les bâtiments: | G21: =W_daten!V19 -> 1.45
A22: L’action du vent sera analysée selon deux directions principales perpendiculaires :
A24: Cas1: Direction de vent Ө=0°
C27: e/10= | D27: =MIN(O6,O4*2)/10 -> 3.6 | E27: ="=e/10" -> =e/10
C29: F
C30: =W_daten!D55*'Toit à deux versants'!G21 -> -2.645
C34: G | D34: H | E34: J | F34: I
C35: =W_daten!D56*'Toit à deux versants'!G21 -> -1.38 | D35: =W_daten!D57*'Toit à deux versants'!G21 -> -0.92 | E35: =W_daten!D58*'Toit à deux versants'!G21 -> -0.69 | F35: =W_daten!D59*'Toit à deux versants'!G21 -> -0.69
B39: e/4= | C39: =MIN(O6,O4*2)/4 -> 9
C40: F
C41: =C30 -> -2.645
C47: F
C48: =W_daten!J55*'Toit à deux versants'!G21 -> -2.07 | D48: H
C49: G | D49: =W_daten!J57*'Toit à deux versants'!G21 -> -0.805 | F49: I
C50: =W_daten!J56*'Toit à deux versants'!G21 -> -1.38 | F50: =W_daten!J58*'Toit à deux versants'!G21 -> -0.69
C51: G | F51: I
C52: =C50 -> -1.38 | F52: =F50 -> -0.69
B53: ="e/4 = "&MIN(O5,O4*2)/4 -> e/4 = 3 | C53: F
C54: =C48 -> -2.07
C56: e/10= | D56: =MIN(O5,O4*2)/10 -> 1.2
C58: e/2= | D58: =MIN(O5,O4*2)/2 -> 6

Sheet Toit en pavillon
A2: Vent:
A4: Ce chapitre présente le calcul de l’action du vent sur une toiture en pavillon conformément aux prescriptions de | J4: Pays | K4: Maroc | N4: h | O4: 18
A5: l’Eurocode 1 (EN 1991-1-4), relatif aux actions du vent sur les structures. L’étude porte sur un bâtiment | J5: Zone | K5: 2 | L5: Binnenland | N5: d | O5: 12
A6: de hauteur inférieure à 25 mètres, ce qui permet l’application des méthodes simplifiées. Les coefficients | J6: Terrain | K6: Semi urbain | N6: b | O6: 40
A7: aérodynamiques sont déterminés en fonction de la géométrie du bâtiment, de la direction du vent, ainsi que
A8: de la répartition des zones de pression sur les parois. Les pressions caractéristiques du vent sont ensuite
A9: calculées à l’aide de la pression de base du vent et des coefficients Cpe permettant une évaluation | J9: alpha | K9: 12
A10: précise des efforts transmis à la structure par la toiture. | J10: alpha | K10: 13
A11: La valeur de base de la vitesse du vent est déterminée conformément à la zone définie
A12: Valeur de base de la vitesse du vent | D12: =IF(K4="Allemagne",VLOOKUP('Toit en pavillon'!K5,W_daten!A4:C7,2,FALSE), IF(K4="Maroc",VLOOKUP('Toit en pavillon'!K5,W_daten!I3:L7,2,FALSE),"")) -> 41.5 | E12: kN/m²
A13: Pression dynamique de base : | C13: =IF(K4="Allemagne",VLOOKUP('Toit en pavillon'!K5,W_daten!A4:C7,3,FALSE), IF(K4="Maroc",VLOOKUP('Toit en pavillon'!K5,W_daten!I3:L7,3,FALSE),"")) -> 1.08 | D13: kN/m²
A15: Les dimensions du bâtiment
A17: Hauteur du bâtiment: | C17: =O4 -> 18
A18: Largeur du bâtiment: | C18: =O5 -> 12
A19: Longuer du bâtiment: | C19: =O6 -> 40
A21: Pression dynamique du vent simplifiée pour les bâtiments: | F21: =W_daten!V24 -> 1.45
A22: L’action du vent sera analysée selon deux directions principales perpendiculaires :
A24: Cas1: Direction de vent Ө=0°
C27: e/10= | D27: =MIN(O6,2*O4)/10 -> 3.6
A29: e/4= | B29: =MIN(O6,2*O4)/4 -> 9 | C29: F | D29: L | E29: M | F29: =W_daten!D169*'Toit en pavillon'!F21 -> -0.87 | G29: J | H29: ="e/10 = "&MIN(O6,2*O4)/10 -> e/10 = 3,6
C30: =W_daten!D162*'Toit en pavillon'!F21 -> -1.305 | E30: =W_daten!D168*'Toit en pavillon'!F21 -> -2.03 | G30: =W_daten!D166*'Toit en pavillon'!F21 -> -1.45
C31: =W_daten!E163*'Toit en pavillon'!F21 -> 0.29
C33: G | E33: H
C34: G | D34: H | E34: I
C35: =W_daten!D163*'Toit en pavillon'!F21 -> -1.16 | D35: =W_daten!D164*'Toit en pavillon'!F21 -> -0.435 | F35: K | G35: I
C36: =W_daten!E163*'Toit en pavillon'!F21 -> 0.29 | D36: =W_daten!E164*'Toit en pavillon'!F21 -> 0.29 | F36: =W_daten!D167*'Toit en pavillon'!F21 -> -1.74 | G36: =W_daten!D165*'Toit en pavillon'!F21 -> -0.725
A42: e/4= | B42: =B29 -> 9 | C42: F
C43: =C30 -> -1.305 | F43: J
C44: =C31 -> 0.29 | E44: L | F44: M | G44: =G30 -> -1.45
E45: =E30 -> -2.03 | F45: =F29 -> -0.87 | H45: =H29 -> e/10 = 3,6
B49: ="e/10 = "&MIN(O5,2*O4)/10 -> e/10 = 1,2
A51: ="e/4 = "&MIN(O5,2*O4)/4 -> e/4 = 3 | B51: F | C51: M | E51: N
B52: =C30 -> -1.305 | C52: L | D52: =D59 -> -0.87 | E52: =W_daten!H170*'Toit en pavillon'!F21 -> -0.435 | G52: J | H52: =H60 -> e/10 = 1,2
B53: =C31 -> 0.29 | C53: =C57 -> -2.03 | G53: =G30 -> -1.45
B54: G | C54: H | G54: I
B55: =C35 -> -1.16 | G55: =G36 -> -0.725
B56: =C36 -> 0.29 | D56: L | E56: N
C57: =E45 -> -2.03 | E57: =E52 -> -0.435 | G57: J
B58: F | D58: M | G58: =G44 -> -1.45
A59: =A51 -> e/4 = 3 | B59: =C43 -> -1.305 | D59: =F29 -> -0.87
B60: =C44 -> 0.29 | H60: =B49 -> e/10 = 1,2
B62: ="e/2 = "&MIN(O5,2*O4)/2 -> e/2 = 6

Sheet Auvent
A2: Vent:
A4: Ce chapitre présente le calcul de l’action du vent sur une Auvent conformément aux prescriptions de | J4: Pays | K4: Maroc | N4: h | O4: 18
A5: l’Eurocode 1 (EN 1991-1-4), relatif aux actions du vent sur les structures. L’étude porte sur un bâtiment | J5: Zone | K5: 2 | L5: Binnenland | N5: b1 | O5: 12
A6: de hauteur inférieure à 25 mètres, ce qui permet l’application des méthodes simplifiées. Les coefficients | J6: Terrain | K6: Semi urbain | N6: l | O6: 40
A7: aérodynamiques sont déterminés en fonction de la géométrie du bâtiment, de la direction du vent, ainsi que | N7: d1 | O7: 1.5
A8: de la répartition des zones de pression sur les parois. Les pressions caractéristiques du vent sont ensuite | N8: h1 | O8: 4
A9: calculées à l’aide de la pression de base du vent et des coefficients Cpe permettant une évaluation | J9: alpha | K9: 12
A10: précise des efforts transmis à la structure par la toiture.
A11: La valeur de base de la vitesse du vent est déterminée conformément à la zone définie
A12: Valeur de base de la vitesse du vent | D12: =IF(K4="Allemagne",VLOOKUP(Auvent!K5,W_daten!A4:C7,2,FALSE), IF(K4="Maroc",VLOOKUP(Auvent!K5,W_daten!I3:L7,2,FALSE),"")) -> 41.5 | E12: kN/m²
A13: Pression dynamique de base : | C13: =IF(K4="Allemagne",VLOOKUP(Auvent!K5,W_daten!A4:C7,3,FALSE), IF(K4="Maroc",VLOOKUP(Auvent!K5,W_daten!I3:L7,3,FALSE),"")) -> 1.08 | D13: kN/m²
A15: Les dimensions du bâtiment | H15: ="h = "&O4&"m" -> h = 18m
F16: ="d1 = "&O7&"m" -> d1 = 1,5m | G16: ="h1 = "&O8&"m" -> h1 = 4m
A17: Hauteur du bâtiment: | C17: =O4 -> 18
A18: Largeur Auvent: | C18: =O5 -> 12
A19: Longuer Auvent: | C19: =O6 -> 40
A21: Pression dynamique du vent simplifiée pour les bâtiments: | F21: =W_daten!V29 -> 1.45
A22: L’action du vent sera analysée selon deux directions principales perpendiculaires :
D32: b1
C34: A | D34: B | E34: A
C35: =W_daten!F112*Auvent!F21 -> 1.16 | D35: =W_daten!F113*Auvent!F21 -> 0.725 | E35: =C35 -> 1.16 | F35: d1
C36: =W_daten!H112*Auvent!F21 -> -1.305 | D36: =W_daten!H113*Auvent!F21 -> -0.29 | E36: =C36 -> -1.305
B39: e= | C39: =MIN(O7/4,O5/2) -> 0.375 | D39: =B39 -> e= | E39: =C39 -> 0.375

Sheet W_daten
A2: Allemagne | I2: Maroc
A3: Windzone | B3: vb0 in m/s | C3: qb0 in KN/m² | D3: qb | E3: Semi urbain | G3: Allemagne | I3: Windzone | J3: vb0 in m/s | K3: qb0 in KN/m² | L3: qb | N3: Hauteur | O3: Semi urbain | P3: urbain dense | R3: höhe | S3: ='Toit plat'!O5 -> 12 | T3: =IF(S3<=10,"A",IF(S3<=18,"B",IF(S3<=25,"C","Außerhalb der Bereiche"))) -> B | U3: ='Toit plat'!K5&'Toit plat'!L5 -> 1Binnenland | V3: =INDEX(C11:F18, MATCH(U3, F11:F18, 0), MATCH(T3,C10:F10, 0)) -> 0.65 | W3: Toit Plat
A4: 1 | B4: 22.5 | C4: 0.32 | E4: urbain dense | G4: Maroc | I4: 1 | J4: 39 | K4: =ROUND((1/2)*1.25*J4^2*(10^(-3)),2) -> 0.95 | M4: A | N4: 10 | O4: 1 | P4: 0.83 | S4: =IF(S3<=10,"A",IF(S3<=20,"B",IF(S3<=25,"C","Außerhalb der Bereiche"))) -> B | T4: ='Toit plat'!K6 -> Semi urbain | U4: =INDEX(O4:P7, MATCH(S4,M4:M6, 0), MATCH(T4,O3:P3, 0)) -> 1.16 | V4: =U4^2*'Toit plat'!C13 -> 0.430592
A5: 2 | B5: 25 | C5: 0.39 | I5: 2 | J5: 41.5 | K5: =ROUND((1/2)*1.25*J5^2*(10^(-3)),2) -> 1.08 | M5: B | N5: 20 | O5: 1.16 | P5: 0.96 | V5: =ROUND(IF('Toit plat'!K4="Allemagne", V3, IF('Toit plat'!K4="Maroc", V4, FALSE)),2) -> 0.65
A6: 3 | B6: 27.5 | C6: 0.47 | I6: 3 | J6: 42.3 | K6: 1.12 | M6: C | N6: 30 | O6: 1.26 | P6: 1.04
A7: 4 | B7: 30 | C7: 0.56 | I7: 4 | J7: 45 | K7: 1.27 | N7: 40 | O7: 1.34 | P7: 1.1 | R7: höhe | S7: ='Toit monopente'!O4 -> 18 | T7: =IF(S7<=10,"A",IF(S7<=18,"B",IF(S7<=25,"C","Außerhalb der Bereiche"))) -> B | U7: ='Toit monopente'!K5&'Toit monopente'!L5 -> 3Binnenland | V7: =INDEX(C11:F18, MATCH(U7, F11:F18, 0), MATCH(T7, C10:F10, 0)) -> 1.2 | W7: Toit monopente
A8: Vereinfachte Böengeschindigkeitsdrücke für Bauwerke bis 25m | S8: =IF(S7<=10,"A",IF(S7<=20,"B",IF(S7<=25,"C","Außerhalb der Bereiche"))) -> B | T8: ='Toit monopente'!K6 -> Semi urbain | U8: =INDEX(O4:P7, MATCH(S8,M4:M6, 0), MATCH(T8,O3:P3, 0)) -> 1.16 | V8: =U8^2*'Toit monopente'!C13 -> 0.632432
V9: =ROUND(IF('Toit monopente'!K4="Allemagne", V7, IF('Toit monopente'!K4="Maroc", V8, FALSE)),2) -> 1.2
C10: A | D10: B | E10: C | F10: E
A11: 1 | B11: Binnenland | C11: 0.5 | D11: 0.65 | E11: 0.75 | F11: =A11&B11 -> 1Binnenland
A12: 2 | B12: Binnenland | C12: 0.65 | D12: 0.8 | E12: 0.9 | F12: =A12&B12 -> 2Binnenland | R12: höhe | S12: ='Toit à deux versants'!O4 -> 18 | T12: =IF(S12<=10,"A",IF(S12<=18,"B",IF(S12<=25,"C","Außerhalb der Bereiche"))) -> B | U12: ='Toit à deux versants'!K5&'Toit à deux versants'!L5 -> 4Binnenland | V12: =INDEX(C11:F18, MATCH(U12, F11:F18, 0), MATCH(T12, C10:F10, 0)) -> 1.15 | W12: Toit a deux versant
A13: 2 | B13: Ostseeküste und –inseln | C13: 0.85 | D13: 1 | E13: 1.1 | F13: 2Ostseeküste und –inseln | H13: höhe | I13: =Mur!C17 -> 24 | J13: =IF(I13<=10,"A",IF(I13<=18,"B",IF(I13<=25,"C","Außerhalb der Bereiche"))) -> C | K13: =Mur!K5&Mur!L5 -> 1Binnenland | L13: =INDEX(C11:F18, MATCH(K13, F11:F18, 0), MATCH(J13, C10:F10, 0)) -> 0.75 | M13: Mur | S13: =IF(S12<=10,"A",IF(S12<=20,"B",IF(S12<=25,"C","Außerhalb der Bereiche"))) -> B | T13: ='Toit à deux versants'!K6 -> Semi urbain | U13: =INDEX(O4:P7, MATCH(S13, M4:M6, 0), MATCH(T13, O3:P3, 0)) -> 1.16 | V13: =U13^2*'Toit à deux versants'!C13 -> 0.753536
A14: 3 | B14: Ostseeküste und –inseln | C14: 0.8 | D14: 0.95 | E14: 1.1 | F14: 3Ostseeküste und –inseln | I14: =IF(I13<=10,"A",IF(I13<=20,"B",IF(I13<=25,"C","Außerhalb der Bereiche"))) -> C | J14: =Mur!K6 -> urbain dense | K14: =INDEX(O4:P7, MATCH(I14, M4:M6, 0), MATCH(J14, O3:P3, 0)) -> 1.04 | L14: =K14^2*Mur!C13 -> 0.346112 | V14: =ROUND(IF('Toit à deux versants'!K4="Allemagne", V12, IF('Toit à deux versants'!K4="Maroc", V13, FALSE)),2) -> 1.15
A15: 3 | B15: Binnenland | C15: 1.05 | D15: 1.2 | E15: 1.3 | F15: 3Binnenland | L15: =ROUND(IF(Mur!K4="Allemagne", L13, IF(Mur!K4="Maroc", L14, FALSE)),2) -> 0.75
A16: 4 | B16: Binnenland | C16: 0.95 | D16: 1.15 | E16: 1.3 | F16: 4Binnenland
A17: 4 | B17: Ostseeküste, Nordseeküste | C17: 1.25 | D17: 1.4 | E17: 1.55 | F17: 4Ostseeküste, Nordseeküste | R17: höhe | S17: ='Toit à deux versants V'!O4 -> 18 | T17: =IF(S17<=10,"A",IF(S17<=18,"B",IF(S17<=25,"C","Außerhalb der Bereiche"))) -> B | U17: ='Toit à deux versants V'!K5&'Toit à deux versants V'!L5 -> 2Binnenland | V17: =INDEX(C11:F18, MATCH(U17, F11:F18, 0), MATCH(T17, C10:F10, 0)) -> 0.8 | W17: Toit a deux versant V
A18: 4 | B18: Nordseeinseln | C18: 1.4 | D18: x | E18: x | F18: 4Nordseeinseln | S18: =IF(S17<=10,"A",IF(S17<=20,"B",IF(S17<=25,"C","Außerhalb der Bereiche"))) -> B | T18: ='Toit à deux versants V'!K6 -> Semi urbain | U18: =INDEX(O4:P7, MATCH(S18, M4:M6, 0), MATCH(T18, O3:P3, 0)) -> 1.16 | V18: =U18^2*'Toit à deux versants V'!C13 -> 1.453248
V19: =ROUND(IF('Toit à deux versants V'!K4="Allemagne", V17, IF('Toit à deux versants V'!K4="Maroc", V18, FALSE)),2) -> 1.45
A20: Erklärung A B C
B21: A | C21: 0 | D21: 10
B22: B | C22: 10 | D22: 18 | R22: höhe | S22: ='Toit en pavillon'!O4 -> 18 | T22: =IF(S22<=10,"A",IF(S22<=18,"B",IF(S22<=25,"C","Außerhalb der Bereiche"))) -> B | U22: ='Toit en pavillon'!K5&'Toit en pavillon'!L5 -> 2Binnenland | V22: =INDEX(C11:F18, MATCH(U22, F11:F18, 0), MATCH(T22, C10:F10, 0)) -> 0.8 | W22: Pavillon
B23: C | C23: 18 | D23: 25 | S23: =IF(S22<=10,"A",IF(S22<=20,"B",IF(S22<=25,"C","Außerhalb der Bereiche"))) -> B | T23: ='Toit en pavillon'!K6 -> Semi urbain | U23: =INDEX(O4:P7, MATCH(S23, M4:M6, 0), MATCH(T23, O3:P3, 0)) -> 1.16 | V23: =U23^2*'Toit en pavillon'!$C$13 -> 1.453248
V24: =ROUND(IF('Toit en pavillon'!K4="Allemagne", V22, IF('Toit en pavillon'!K4="Maroc", V23, FALSE)),2) -> 1.45
A26: Mur
R27: höhe | S27: =Auvent!O4 -> 18 | T27: =IF(S27<=10,"A",IF(S27<=18,"B",IF(S27<=25,"C","Außerhalb der Bereiche"))) -> B | U27: =Auvent!K5&Auvent!L5 -> 2Binnenland | V27: =INDEX(C11:F18, MATCH(U27, F11:F18, 0), MATCH(T27, C10:F10, 0)) -> 0.8 | W27: Au vent
A28: Bereich | B28: A | C28: A | D28: B | E28: B | F28: C | G28: C | H28: D | I28: D | J28: E | K28: E | S28: =IF(S27<=10,"A",IF(S27<=20,"B",IF(S27<=25,"C","Außerhalb der Bereiche"))) -> B | T28: =Auvent!K6 -> Semi urbain | U28: =INDEX(O4:P7, MATCH(S28, M4:M6, 0), MATCH(T28, O3:P3, 0)) -> 1.16 | V28: =U28^2*Auvent!C13 -> 1.453248
A29: h/d | B29: Cpe,10 | C29: Cpe,1 | D29: Cpe,10 | E29: Cpe,1 | F29: Cpe,10 | G29: Cpe,1 | H29: Cpe,10 | I29: Cpe,1 | J29: Cpe,10 | K29: Cpe,1 | V29: =ROUND(IF(Auvent!K4="Allemagne", V27, IF(Auvent!K4="Maroc", V28, FALSE)),2) -> 1.45
A30: 5 | B30: -1.4 | C30: -1.7 | D30: -0.8 | E30: -1.1 | F30: -0.5 | G30: -0.7 | H30: 0.8 | I30: 1 | J30: -0.5 | K30: -0.7
A31: 1 | B31: -1.2 | C31: -1.4 | D31: -0.8 | E31: -1.1 | F31: -0.5 | G31: -0.5 | H31: 0.8 | I31: 1 | J31: -0.5 | K31: -0.5
A32: 0.25 | B32: -1.2 | C32: -1.4 | D32: -0.8 | E32: -1.1 | F32: -0.5 | G32: -0.5 | H32: 0.7 | I32: 1 | J32: -0.3 | K32: -0.7
B34: h/d | C34: =Mur!D26 -> 4 | D34: A | E34: =VLOOKUP(B35,A30:B32,2,FALSE) -> -1.2 | H34: h/d | I34: =Mur!D80 -> 0 | J34: A | K34: =VLOOKUP(B35,A30:B32,2,FALSE) -> -1.2 | Q34: Toit plat
B35: =IF(C34>=5,5,IF(C34<5,1,IF(C34<1,0.25,"Außerhalb der Bereiche"))) -> 1 | D35: B | E35: =VLOOKUP(B35,A30:D32,4,FALSE) -> -0.8 | H35: =IF(I34>=5,5,IF(I34<5,1,IF(I34<1,0.25,"Außerhalb der Bereiche"))) -> 1 | J35: B | K35: =VLOOKUP(B35,A30:D32,4,FALSE) -> -0.8 | S35: F | U35: G | W35: H | Y35: I
D36: C | E36: =VLOOKUP(B35,A30:F32,6,FALSE) -> -0.5 | J36: C | K36: =VLOOKUP(B35,A30:F32,6,FALSE) -> -0.5 | S36: Cpe,10 | T36: Cpe,1 | U36: Cpe,10 | V36: Cpe,1 | W36: Cpe,10 | X36: Cpe,1 | Y36: Cpe,10 | Z36: Cpe,1
D37: D | E37: =VLOOKUP(B35,A30:H32,8,FALSE) -> 0.8 | J37: D | K37: =VLOOKUP(B35,A30:H32,8,FALSE) -> 0.8 | Q37: Zone de rive à bord tranchant | R37: Zone de rive à bord tranchant | S37: -1.8 | T37: -2.5 | U37: -1.2 | V37: -2 | W37: -0.7 | X37: -1.2 | Y37: 0.2 | Z37: -0.6
D38: E | E38: =VLOOKUP(B35,A30:J32,10,FALSE) -> -0.5 | J38: E | K38: =VLOOKUP(B35,A30:J32,10,FALSE) -> -0.5 | Q38: avec acrotère | R38: hp/h=0,025 | S38: -1.6 | T38: -2.2 | U38: -1.1 | V38: -1.8 | W38: -0.7 | X38: -1.2 | Y38: 0.2 | Z38: -0.6
R39: hp/h=0,05 | S39: -1.4 | T39: -2 | U39: -0.9 | V39: -1.6 | W39: -0.7 | X39: -1.2 | Y39: 0.2 | Z39: -0.6
A40: 2 VV | B40: F | D40: G | F40: H | H40: I | J40: J | R40: hp/h=0,10 | S40: -1.2 | T40: -1.8 | U40: -0.8 | V40: -1.4 | W40: -0.7 | X40: -1.2 | Y40: 0.2 | Z40: -0.6
A41: Trogdach 0° | B41: Cpe,10 | C41: Cpe,1 | D41: Cpe,10 | E41: Cpe,1 | F41: Cpe,10 | G41: Cpe,1 | H41: Cpe,10 | I41: Cpe,1 | J41: Cpe,10 | K41: Cpe,1 | Q41: Zone de rive arrondie | R41: r/h=0,05 | S41: -1 | T41: -1.5 | U41: -1.2 | V41: -1.8 | W41: -0.4 | X41: -0.4 | Y41: 0.2 | Z41: -0.2
A42: -45 | B42: -0.6 | C42: -0.6 | D42: -0.6 | E42: -0.6 | F42: -0.8 | G42: -0.8 | H42: -0.7 | I42: -0.7 | J42: -1 | K42: -1.5 | R42: r/h=0,10 | S42: -0.7 | T42: -1.2 | U42: -0.8 | V42: -1.4 | W42: -0.3 | X42: -0.3 | Y42: 0.2 | Z42: -0.2
A43: -30 | B43: -1.1 | C43: -2 | D43: -0.8 | E43: -1.5 | F43: -0.8 | G43: -0.8 | H43: -0.6 | I43: -0.6 | J43: -0.8 | K43: -1.4 | R43: r/h=0,20 | S43: -0.5 | T43: -0.8 | U43: -0.5 | V43: -0.8 | W43: -0.3 | X43: -0.3 | Y43: 0.2 | Z43: -0.02
A44: -15 | B44: -2.5 | C44: -2.8 | D44: -1.3 | E44: -2 | F44: -0.9 | G44: -1.2 | H44: -0.5 | I44: -0.5 | J44: -0.7 | K44: -1.2 | Q44: Zone de rive en pente | R44: alphq=30 | S44: -1 | T44: -1.5 | U44: -1 | V44: -1.5 | W44: -0.3 | X44: -0.3 | Y44: 0.2 | Z44: -0.2
A45: -5 | B45: -2.3 | C45: -2.5 | D45: -1.2 | E45: -2 | F45: -0.8 | G45: -1.2 | H45: -0.6 | I45: -0.6 | J45: -0.6 | K45: -0.6 | R45: alpha=45 | S45: -1.2 | T45: -1.8 | U45: -1.3 | V45: -1.9 | W45: -0.4 | X45: -0.4 | Y45: 0.2 | Z45: -0.2
B46: F | D46: G | F46: H | H46: I | R46: alpha=60 | S46: -1.3 | T46: -1.9 | U46: -1.3 | V46: -1.9 | W46: -0.5 | X46: -0.5 | Y46: 0.2 | Z46: -0.2
A47: Trogdach 90° | B47: Cpe,10 | C47: Cpe,1 | D47: Cpe,10 | E47: Cpe,1 | F47: Cpe,10 | G47: Cpe,1 | H47: Cpe,10 | I47: Cpe,1
A48: -45 | B48: -1.4 | C48: -2 | D48: -1.2 | E48: -2 | F48: -1 | G48: -1.3 | H48: -0.9 | I48: -1.2 | R48: hp/h= | S48: =IF('Toit plat'!K8=W_daten!Q37,"", IF('Toit plat'!K8=W_daten!Q38,'Toit plat'!K9/'Toit plat'!O4, IF('Toit plat'!K8=W_daten!Q41,"",IF('Toit plat'!K8=W_daten!Q44,"", "")))) -> 0.5 | T48: alpha/h= | U48: =IF('Toit plat'!K8=W_daten!Q37,"", IF('Toit plat'!K8=W_daten!Q38,"", IF('Toit plat'!K8=W_daten!Q41,"",IF('Toit plat'!K8=W_daten!Q44,'Toit plat'!K9/'Toit plat'!O4, "")))) ->  | Y48: hp/h= | Z48: =IF('Toit plat'!Q8=W_daten!X37,"", IF('Toit plat'!Q8=W_daten!X38,'Toit plat'!R9/'Toit plat'!V4, IF('Toit plat'!Q8=W_daten!X41,"",IF('Toit plat'!Q8=W_daten!X44,"", "")))) ->  | AA48: alpha/h= | AB48: =IF('Toit plat'!Q8=W_daten!X37,"", IF('Toit plat'!Q8=W_daten!X38,"", IF('Toit plat'!Q8=W_daten!X41,"",IF('Toit plat'!Q8=W_daten!X44,'Toit plat'!R9/'Toit plat'!V4, "")))) -> 
A49: -30 | B49: -1.5 | C49: -2.1 | D49: -1.2 | E49: -2 | F49: -1 | G49: -1.3 | H49: -0.9 | I49: -1.2 | R49: Cas1 | S49: Cas2 | T49: Cas3 | U49: Cas 4 | V49: Resultat | Y49: Cas1 | Z49: Cas2 | AA49: Cas3 | AB49: Cas 4 | AC49: Resultat
A50: -15 | B50: -1.9 | C50: -2.5 | D50: -1.2 | E50: -2 | F50: -0.8 | G50: -1.2 | H50: -0.8 | I50: -1.2 | Q50: F | R50: =S37 -> -1.8 | S50: =VLOOKUP(S55,R38:S40,2,FALSE) -> -1.2 | T50: =VLOOKUP(T55,R41:T43,2,FALSE) ->  | U50: =VLOOKUP(U55,R44:T46,2,FALSE) ->  | V50: =IF('Toit plat'!K8=W_daten!Q37,R50, IF('Toit plat'!K8=W_daten!Q38,S50, IF('Toit plat'!K8=W_daten!Q41,T50,IF('Toit plat'!K8=W_daten!Q44,U50, "")))) -> -1.2 | X50: I | Y50: =Z37 -> -0.6 | AC50: =Y50 -> -0.6
A51: -5 | B51: -1.8 | C51: -2.5 | D51: -1.2 | E51: -2 | F51: -0.7 | G51: -1.2 | H51: -0.6 | I51: -1.2 | Q51: G | R51: =U37 -> -1.2 | S51: =VLOOKUP(S55,R38:V40,4,FALSE) -> -0.8 | T51: =VLOOKUP(T55,R41:U43,4,FALSE) ->  | U51: =VLOOKUP(U55,R44:U46,4,FALSE) ->  | V51: =IF('Toit plat'!K8=W_daten!Q37,R51, IF('Toit plat'!K8=W_daten!Q38,S51, IF('Toit plat'!K8=W_daten!Q41,T51,IF('Toit plat'!K8=W_daten!Q44,U51, "")))) -> -0.8
Q52: H | R52: =W37 -> -0.7 | S52: =VLOOKUP(S55,R38:W40,6,FALSE) -> -0.7 | T52: =VLOOKUP(T55,R41:W43,6,FALSE) ->  | U52: =VLOOKUP(U55,R44:W46,6,FALSE) ->  | V52: =IF('Toit plat'!K8=W_daten!Q37,R52, IF('Toit plat'!K8=W_daten!Q38,S52, IF('Toit plat'!K8=W_daten!Q41,T52,IF('Toit plat'!K8=W_daten!Q44,U52, "")))) -> -0.7
A53: alpha | B53: cas 0 | Q53: I | R53: =Y37 -> 0.2 | S53: =VLOOKUP(S55,R38:Y40,8,FALSE) -> 0.2 | T53: =VLOOKUP(T55,R41:Y43,8,FALSE) ->  | U53: =VLOOKUP(U55,R44:Y46,8,FALSE) ->  | V53: =IF('Toit plat'!K8=W_daten!Q37,R53, IF('Toit plat'!K8=W_daten!Q38,S53, IF('Toit plat'!K8=W_daten!Q41,T53,IF('Toit plat'!K8=W_daten!Q44,U53, "")))) -> 0.2
A54: ='Toit à deux versants V'!K9 -> -12 | D54: cas1 | S54: r/h= | T54: =IF('Toit plat'!K8=W_daten!Q37,"", IF('Toit plat'!K8=W_daten!Q38,"", IF('Toit plat'!K8=W_daten!Q41,'Toit plat'!K9/'Toit plat'!O4,IF('Toit plat'!K8=W_daten!Q44,"", "")))) -> 
B55: =IF(A54<=-45,-45, IF(A54<=-30,-30, IF(A54<=-15,-15, IF(A54<=-5,-5, "Außerhalb der Bereiche")))) -> -5 | C55: F | D55: =VLOOKUP(B55,A41:B45,2,FALSE) -> -2.3 | H55: =B55 -> -5 | I55: F | J55: =VLOOKUP(H55,A47:B51,2,FALSE) -> -1.8 | S55: =IF(S48="", "", IF(S48<=0.025, R38, IF(AND(S48>0.025, S48<=0.05), R39, IF(S48>0.05, R40, IF(S48=0, "Autre", ""))))) -> hp/h=0,10 | T55: =IF(T54="", "", IF(T54<=0.05, R41, IF(AND(T54>0.05, T54<=0.1), R42, IF(T54>0.01, R43, IF(T54=0, "Autre", ""))))) ->  | U55: =IF(U48="", "", IF(U48<=0.05, R44, IF(AND(U48>0.05, U48<=0.1), R45, IF(U48>0.01, R46, IF(U48=0, "Autre", ""))))) -> 
C56: G | D56: =VLOOKUP(B55,A42:D45,4,FALSE) -> -1.2 | I56: G | J56: =VLOOKUP(H55,A48:D51,4,FALSE) -> -1.2
C57: H | D57: =VLOOKUP(B55,A42:F45,6,FALSE) -> -0.8 | I57: H | J57: =VLOOKUP(H55,A48:F51,6,FALSE) -> -0.7
C58: I | D58: =VLOOKUP(B55,A42:H45,8,FALSE) -> -0.6 | I58: I | J58: =VLOOKUP(H55,A48:H51,8,FALSE) -> -0.6 | Q58: Toit momopente | R58: 0deg | S58: F | U58: G | W58: H
C59: J | D59: =VLOOKUP(B55,A42:J45,10,FALSE) -> -0.6 | S59: Cpe,10 | T59: Cpe,1 | U59: Cpe,10 | V59: Cpe,1 | W59: Cpe,10 | X59: Cpe,1
R60: 5 | S60: -1.7 | T60: -2.5 | U60: -1.2 | V60: -2 | W60: -0.6 | X60: -0.6
R61: 5A | S61: 0 | T61: 0 | U61: 0 | V61: 0 | W61: 0 | X61: 0
A62: 2V | R62: 15 | S62: -0.9 | T62: -2 | U62: -0.8 | V62: -1.5 | W62: -0.3 | X62: -0.3
B63: F | D63: G | F63: H | H63: I | J63: J | R63: 15A | S63: 0.2 | T63: 0.2 | U63: 0.2 | V63: 0.2 | W63: 0.2 | X63: 0.2
A64: Satteldach 0° | B64: Cpe,10 | C64: Cpe,1 | D64: Cpe,10 | E64: Cpe,1 | F64: Cpe,10 | G64: Cpe,1 | H64: Cpe,10 | I64: Cpe,1 | J64: Cpe,10 | K64: Cpe,1 | R64: 30 | S64: -0.5 | T64: -1.5 | U64: -0.5 | V64: -1.5 | W64: -0.2 | X64: -0.2
A65: 5 | B65: -1.7 | C65: -2.5 | D65: -1.2 | E65: -2 | F65: -0.6 | G65: -1.2 | H65: -0.6 | I65: -0.6 | J65: 0.2 | K65: 0.2 | R65: 30A | S65: 0.7 | T65: 0.7 | U65: 0.7 | V65: 0.7 | W65: 0.4 | X65: 0.4
A66: 5A | B66: 0 | C66: 0 | D66: 0 | E66: 0 | F66: 0 | G66: 0 | H66: -0.6 | I66: -0.6 | J66: -0.6 | K66: -0.6 | R66: 45 | S66: 0 | T66: 0 | U66: 0 | V66: 0 | W66: 0 | X66: 0
A67: 15 | B67: -0.9 | C67: -2 | D67: -0.8 | E67: -1.5 | F67: -0.3 | G67: -0.3 | H67: -0.4 | I67: -0.4 | J67: -1 | K67: -1.5 | R67: 45A | S67: 0.7 | T67: 0.7 | U67: 0.7 | V67: 0.7 | W67: 0.6 | X67: 0.6
A68: 15A | B68: 0.2 | C68: 0.2 | D68: 0.2 | E68: 0.2 | F68: 0.2 | G68: 0.2 | H68: 0 | I68: 0 | J68: 0 | K68: 0 | R68: 60 | S68: 0.7 | T68: 0.7 | U68: 0.7 | V68: 0.7 | W68: 0.7 | X68: 0.7
A69: 30 | B69: -0.5 | C69: -1.5 | D69: -0.5 | E69: -1.5 | F69: -0.2 | G69: -0.2 | H69: -0.4 | I69: -0.4 | J69: -0.5 | K69: -0.5 | R69: 75 | S69: 0.8 | T69: 0.8 | U69: 0.8 | V69: 0.8 | W69: 0.8 | X69: 0.8
A70: 30A | B70: 0.7 | C70: 0.7 | D70: 0.7 | E70: 0.7 | F70: 0.4 | G70: 0.4 | H70: 0 | I70: 0 | J70: 0 | K70: 0 | Q70: alpha | R70: cas 0 | U70: cas1 | V70: cas2
A71: 45 | B71: 0 | C71: 0 | D71: 0 | E71: 0 | F71: 0 | G71: 0 | H71: -0.2 | I71: -0.2 | J71: -0.3 | K71: -0.3 | Q71: ='Toit monopente'!K9 -> 15 | S71: Resultat | T71: F | U71: =VLOOKUP(R72,R60:S69,2,FALSE) -> -0.9 | V71: =VLOOKUP(R73,R60:S69,2,FALSE) -> 0.2
A72: 45A | B72: 0.7 | C72: 0.7 | D72: 0.7 | E72: 0.7 | F72: 0.6 | G72: 0.6 | H72: 0 | I72: 0 | J72: 0 | K72: 0 | R72: =IF(Q71<=10,5, IF(Q71<=28,15, IF(Q71<=42,30, IF(Q71<=50,45, IF(Q71<=65,60, IF(Q71<=75,75, "Außerhalb der Bereiche")))))) -> 15 | T72: G | U72: =VLOOKUP(R72,R60:U69,4,FALSE) -> -0.8 | V72: =VLOOKUP(R73,R60:U69,4,FALSE) -> 0.2
A73: 60 | B73: 0.7 | C73: 0.7 | D73: 0.7 | E73: 0.7 | F73: 0.7 | G73: 0.7 | H73: -0.2 | I73: -0.2 | J73: -0.3 | K73: -0.3 | R73: =IF(Q71<=10,"5A", IF(Q71<=28,"15A", IF(Q71<=42,"30A", IF(Q71<=50,"45A", IF(Q71<=65,60, IF(Q71<=75,75, "Außerhalb der Bereiche")))))) -> 15A | T73: H | U73: =VLOOKUP(R72,R60:W69,6,FALSE) -> -0.3 | V73: =VLOOKUP(R73,R60:W69,6,FALSE) -> 0.2
A74: 75 | B74: 0.8 | C74: 0.8 | D74: 0.8 | E74: 0.8 | F74: 0.8 | G74: 0.8 | H74: -0.2 | I74: -0.2 | J74: -0.3 | K74: -0.3
B77: F | D77: G | F77: H | H77: I
A78: Satteldach 90° | B78: Cpe,10 | C78: Cpe,1 | D78: Cpe,10 | E78: Cpe,1 | F78: Cpe,10 | G78: Cpe,1 | H78: Cpe,10 | I78: Cpe,1
A79: 5 | B79: -1.6 | C79: -2.2 | D79: -1.3 | E79: -2 | F79: -0.7 | G79: -1.2 | H79: -0.6 | I79: -0.6 | R79: 180deg | S79: F | U79: G | W79: H
A80: 15 | B80: -1.3 | C80: -2 | D80: -1.3 | E80: -2 | F80: -0.6 | G80: -1.2 | H80: -0.5 | I80: -0.5 | S80: Cpe,10 | T80: Cpe,1 | U80: Cpe,10 | V80: Cpe,1 | W80: Cpe,10 | X80: Cpe,1
A81: 30 | B81: -1.1 | C81: -1.5 | D81: -1.4 | E81: -2 | F81: -0.8 | G81: -1.2 | H81: -0.5 | I81: -0.5 | R81: 5 | S81: -2.3 | T81: -2.5 | U81: -1.3 | V81: -2 | W81: -0.8 | X81: -1.2
A82: 45 | B82: -1.1 | C82: -1.5 | D82: -1.4 | E82: -2 | F82: -0.9 | G82: -1.2 | H82: -0.5 | I82: -0.5 | R82: 15 | S82: -2.5 | T82: -2.8 | U82: -1.3 | V82: -2 | W82: -0.9 | X82: -1.2
A83: 60 | B83: -1.1 | C83: -1.5 | D83: -1.2 | E83: -2 | F83: -0.8 | G83: -1 | H83: -0.5 | I83: -0.5 | R83: 30 | S83: -1.1 | T83: -2.3 | U83: -0.8 | V83: -1.5 | W83: -0.88 | X83: -0.8
A84: 75 | B84: -1.1 | C84: -1.5 | D84: -1.2 | E84: -2 | F84: -0.8 | G84: -1 | H84: -0.5 | I84: -0.5 | R84: 45 | S84: -0.6 | T84: -1.3 | U84: -0.5 | V84: -0.5 | W84: -0.7 | X84: -0.7
R85: 60 | S85: -0.5 | T85: -1 | U85: -0.5 | V85: -0.5 | W85: -0.5 | X85: -0.5
A86: 2V | R86: 75 | S86: -0.5 | T86: -1 | U86: -0.5 | V86: -0.5 | W86: -0.5 | X86: -0.5
A87: alpha | B87: cas 0 | F87: CAS 90 | R87: cas 180 | W87: Cas 90
A88: ='Toit à deux versants'!K9 -> 7 | D88: cas1 | E88: cas2 | S88: Resultat | T88: F | U88: =VLOOKUP(R89,R79:S86,2,FALSE) -> -2.5 | X88: Fh | Y88: =VLOOKUP(R89,R96:S103,2,FALSE) -> -2.4
B89: =IF(A88<=10,5, IF(A88<=28,15, IF(A88<=42,30, IF(A88<=50,45, IF(A88<=65,60, IF(A88<=75,75, "Außerhalb der Bereiche")))))) -> 5 | C89: F | D89: =VLOOKUP(B89,A65:B74,2,FALSE) -> -1.7 | E89: =VLOOKUP(B90,A65:B74,2,FALSE) -> 0 | F89: =B89 -> 5 | G89: F | H89: =VLOOKUP(F89,A77:B84,2,FALSE) -> -1.6 | R89: =R72 -> 15 | T89: G | U89: =VLOOKUP(R89,R79:U86,4,FALSE) -> -1.3 | W89: =R89 -> 15 | X89: Fbas | Y89: =VLOOKUP(R89,R97:U103,4,FALSE) -> -1.6
B90: =IF(A88<=10,"5A", IF(A88<=28,"15A", IF(A88<=42,"30A", IF(A88<=50,"45A", IF(A88<=65,60, IF(A88<=75,75, "Außerhalb der Bereiche")))))) -> 5A | C90: G | D90: =VLOOKUP(B89,A65:D74,4,FALSE) -> -1.2 | E90: =VLOOKUP(B90,A65:D74,4,FALSE) -> 0 | F90: =B90 -> 5A | G90: G | H90: =VLOOKUP(F89,A77:D84,4,FALSE) -> -1.3 | T90: H | U90: =VLOOKUP(R89,R79:W86,6,FALSE) -> -0.9 | X90: G | Y90: =VLOOKUP(R89,R97:W103,6,FALSE) -> -1.9
C91: H | D91: =VLOOKUP(B89,A65:F74,6,FALSE) -> -0.6 | E91: =VLOOKUP(B90,A65:F74,6,FALSE) -> 0 | G91: H | H91: =VLOOKUP(F89,A77:F84,6,FALSE) -> -0.7 | X91: H | Y91: =VLOOKUP(R89,R97:Y103,8,FALSE) -> -0.8
C92: I | D92: =VLOOKUP(B89,A65:H74,8,FALSE) -> -0.6 | E92: =VLOOKUP(B90,A65:H74,8,FALSE) -> -0.6 | G92: I | H92: =VLOOKUP(F89,A77:H84,8,FALSE) -> -0.6 | X92: I | Y92: =VLOOKUP(R89,R98:AA103,10,FALSE) -> -0.7
C93: J | D93: =VLOOKUP(B89,A65:J74,10,FALSE) -> 0.2 | E93: =VLOOKUP(B90,A65:J74,10,FALSE) -> -0.6
R96: 90deg | S96: F h | U96: Fbas | W96: G | Y96: H | AA96: I
B97: Auvent | C97: A1 | D97: A2 | F97: B1 | G97: B2 | S97: Cpe,10 | T97: Cpe,1 | U97: Cpe,10 | V97: Cpe,1 | W97: Cpe,10 | X97: Cpe,1 | Y97: Cpe,10 | Z97: Cpe,1 | AA97: Cpe,10 | AB97: Cpe,1
C98: descendant | D98: ascendant h1/d1<=1 | E98: ascendant h1/d1>1 | F98: descendant | G98: ascendant h1/d1<=1 | H98: ascendant h1/d1>1 | R98: 5 | S98: -2.1 | T98: -2.6 | U98: -2.1 | V98: -2.4 | W98: -1.8 | X98: -2 | Y98: -0.6 | Z98: -1.2 | AA98: -0.5 | AB98: -0.5
B99: 0.1 | C99: 1.1 | D99: -0.9 | E99: -1.4 | F99: 0.9 | G99: -0.2 | H99: -0.5 | R99: 15 | S99: -2.4 | T99: -2.9 | U99: -1.6 | V99: -2.4 | W99: -1.9 | X99: -2.5 | Y99: -0.8 | Z99: -1.2 | AA99: -0.7 | AB99: -1.2
B100: 0.2 | C100: 0.8 | D100: -0.9 | E100: -1.4 | F100: 0.5 | G100: -0.2 | H100: -0.5 | R100: 30 | S100: -2.1 | T100: -2.9 | U100: -1.3 | V100: -2 | W100: -1.5 | X100: -2 | Y100: -1 | Z100: -1.3 | AA100: -0.8 | AB100: -1.2
B101: 0.3 | C101: 0.7 | D101: -0.9 | E101: -1.4 | F101: 0.4 | G101: -0.2 | H101: -0.5 | R101: 45 | S101: -1.5 | T101: -2.4 | U101: -1.3 | V101: -2 | W101: -1.4 | X101: -2 | Y101: -1 | Z101: -1.3 | AA101: -0.9 | AB101: -1.2
B102: 0.4 | C102: 0.7 | D102: -1 | E102: -1.5 | F102: 0.3 | G102: -0.2 | H102: -0.5 | R102: 60 | S102: -1.2 | T102: -2 | U102: -1.2 | V102: -2 | W102: -1.2 | X102: -2 | Y102: -1 | Z102: -1.3 | AA102: -0.7 | AB102: -1.2
B103: 0.5 | C103: 0.7 | D103: -1 | E103: -1.5 | F103: 0.3 | G103: -0.2 | H103: -0.5 | R103: 75 | S103: -1.2 | T103: -2 | U103: -1.2 | V103: -2 | W103: -1.2 | X103: -2 | Y103: -1 | Z103: -1.3 | AA103: -0.5 | AB103: -0.5
B104: 0.6 | C104: 0.7 | D104: -1.1 | E104: -1.6 | F104: 0.3 | G104: -0.4 | H104: -0.7
B105: 0.7 | C105: 0.7 | D105: -1.2 | E105: -1.7 | F105: 0.3 | G105: -0.7 | H105: -1
B106: 0.8 | C106: 0.7 | D106: -1.4 | E106: -1.9 | F106: 0.3 | G106: -1 | H106: -1.3
B107: 0.9 | C107: 0.7 | D107: -1.7 | E107: -2.2 | F107: 0.3 | G107: -1.3 | H107: -1.6
B108: 1 | C108: 0.7 | D108: -2 | E108: -2.5 | F108: 0.3 | G108: -1.6 | H108: -1.9
D111: Resultat
C112: h1/d1 | D112: =Auvent!O8/Auvent!O7 -> 2.666666667 | E112: A | F112: =VLOOKUP(B113,B99:C108,2,FALSE) -> 0.8 | G112: A | H112: =IF(B113<2,VLOOKUP(B113,B98:E108,3,FALSE),VLOOKUP(B113,B98:E108,4,FALSE)) -> -0.9
B113: =IF(D113<0.1,0.1, IF(D113<0.2,0.1, IF(D113<0.3,0.2, IF(D113<0.4,0.3, IF(D113<0.5,0.4, IF(D113<0.6,0.5, IF(D113<0.7,0.6, IF(D113<0.8,0.7, IF(D113<0.9,0.8, IF(D113<1,0.9,1)))))))))) -> 0.2 | C113: h1/h | D113: =Auvent!O8/Auvent!O4 -> 0.2222222222 | E113: B | F113: =VLOOKUP(B113,B99:F108,5,FALSE) -> 0.5 | G113: B | H113: =IF(B113<2,VLOOKUP(B113,B98:G108,6,FALSE),VLOOKUP(B113,B98:H108,7,FALSE)) -> -0.2
A135: 2V
B136: F | D136: G | F136: H | H136: I | J136: J | L136: K | N136: L | P136: M | R136: N
A137: Toit Pavillon | B137: Cpe,10 | C137: Cpe,1 | D137: Cpe,10 | E137: Cpe,1 | F137: Cpe,10 | G137: Cpe,1 | H137: Cpe,10 | I137: Cpe,1 | J137: Cpe,10 | K137: Cpe,1 | L137: Cpe,10 | M137: Cpe,1 | N137: Cpe,10 | O137: Cpe,1 | P137: Cpe,10 | Q137: Cpe,1 | R137: Cpe,10 | S137: Cpe,1
A138: 5 | B138: -1.7 | C138: -2.5 | D138: -1.2 | E138: -2 | F138: -0.6 | G138: -1.2 | H138: -0.3 | I138: -0.3 | J138: -0.6 | K138: -0.6 | L138: -0.6 | M138: -0.6 | N138: -1.2 | O138: -2 | P138: -0.6 | Q138: -1.2 | R138: -0.4 | S138: -0.4
A139: 5A | B139: 0 | C139: 0 | D139: 0 | E139: 0 | F139: 0 | G139: 0 | H139: -0.3 | I139: -0.3 | J139: -0.6 | K139: -0.6 | L139: -0.6 | M139: -0.6 | N139: -1.2 | O139: -2 | P139: -0.6 | Q139: -1.2 | R139: -0.4 | S139: -0.4
A140: 15 | B140: -0.9 | C140: -2 | D140: -0.8 | E140: -1.5 | F140: -0.3 | G140: -0.3 | H140: -0.5 | I140: -0.5 | J140: -1 | K140: -1.5 | L140: -1.2 | M140: -2 | N140: -1.4 | O140: -2 | P140: -0.6 | Q140: -1.2 | R140: -0.3 | S140: -0.3
A141: 15A | B141: 0.2 | C141: 0.2 | D141: 0.2 | E141: 0.2 | F141: 0.2 | G141: 0.2 | H141: -0.5 | I141: -0.5 | J141: -1 | K141: 1.5 | L141: -1.2 | M141: -2 | N141: -1.4 | O141: -2 | P141: -0.6 | Q141: -1.2 | R141: -0.3 | S141: -0.3
A142: 30 | B142: -0.5 | C142: -1.5 | D142: -0.5 | E142: -1.5 | F142: -0.2 | G142: -0.2 | H142: -0.4 | I142: -0.4 | J142: -0.7 | K142: -1.2 | L142: -0.5 | M142: -0.5 | N142: -1.4 | O142: -2 | P142: -0.8 | Q142: -1.2 | R142: -0.2 | S142: -0.2
A143: 30A | B143: 0.5 | C143: 0.5 | D143: 0.7 | E143: 0.7 | F143: 0.4 | G143: 0.4 | H143: -0.4 | I143: -0.4 | J143: -0.7 | K143: -1.2 | L143: -0.5 | M143: -0.5 | N143: -1.4 | O143: -2 | P143: -0.8 | Q143: -1.2 | R143: -0.2 | S143: -0.2
A144: 45 | B144: 0 | C144: 0 | D144: 0 | E144: 0 | F144: 0 | G144: 0 | H144: -0.3 | I144: -0.3 | J144: -0.6 | K144: -0.6 | L144: -0.3 | M144: -0.3 | N144: -1.3 | O144: -2 | P144: -0.8 | Q144: -1.2 | R144: -0.2 | S144: -0.2
A145: 45A | B145: 0.7 | C145: 0.7 | D145: 0.7 | E145: 0.7 | F145: 0.6 | G145: 0.6 | H145: -0.3 | I145: -0.3 | J145: -0.6 | K145: -0.6 | L145: -0.3 | M145: -0.3 | N145: -1.3 | O145: -2 | P145: -0.8 | Q145: -1.2 | R145: -0.2 | S145: -0.2
A146: 60 | B146: 0.7 | C146: 0.7 | D146: 0.7 | E146: 0.7 | F146: 0.7 | G146: 0.7 | H146: -0.3 | I146: -0.3 | J146: -0.6 | K146: -0.6 | L146: -0.3 | M146: -0.3 | N146: -1.2 | O146: -2 | P146: -0.4 | Q146: -0.4 | R146: -0.2 | S146: -0.2
A147: 75 | B147: 0.8 | C147: 0.8 | D147: 0.8 | E147: 0.8 | F147: 0.8 | G147: 0.8 | H147: -0.3 | I147: -0.3 | J147: -0.6 | K147: -0.6 | L147: -0.3 | M147: -0.3 | N147: -1.2 | O147: -2 | P147: -0.4 | Q147: -0.4 | R147: -0.2 | S147: -0.2
A160: alpha | B160: cas 0 | F160: CAS 90
A161: ='Toit en pavillon'!K9 -> 12 | D161: cas1 | E161: cas2 | F161: ='Toit en pavillon'!K10 -> 13
B162: =IF(A161<=10,5, IF(A161<=28,15, IF(A161<=42,30, IF(A161<=50,45, IF(A161<=65,60, IF(A161<=75,75, "Außerhalb der Bereiche")))))) -> 15 | C162: F | D162: =VLOOKUP(B162,A138:B147,2,FALSE) -> -0.9 | E162: =VLOOKUP(B163,A138:B147,2,FALSE) -> 0.2 | F162: =IF(F161<=10,5, IF(F161<=28,15, IF(F161<=42,30, IF(F161<=50,45, IF(F161<=65,60, IF(F161<=75,75, "Außerhalb der Bereiche")))))) -> 15 | G162: F | H162: =VLOOKUP(B162,A138:B147,2,FALSE) -> -0.9 | I162: =VLOOKUP(B163,A138:B147,2,FALSE) -> 0.2
B163: =IF(A161<=10,"5A", IF(A161<=28,"15A", IF(A161<=42,"30A", IF(A161<=50,"45A", IF(A161<=65,60, IF(A161<=75,75, "Außerhalb der Bereiche")))))) -> 15A | C163: G | D163: =VLOOKUP(B162,A138:D147,4,FALSE) -> -0.8 | E163: =VLOOKUP(B163,A138:D147,4,FALSE) -> 0.2 | F163: =IF(F161<=10,"5A", IF(F161<=28,"15A", IF(F161<=42,"30A", IF(F161<=50,"45A", IF(F161<=65,60, IF(F161<=75,75, "Außerhalb der Bereiche")))))) -> 15A | G163: G | H163: =VLOOKUP(B162,A138:D147,4,FALSE) -> -0.8 | I163: =VLOOKUP(B163,A138:D147,4,FALSE) -> 0.2
C164: H | D164: =VLOOKUP(B162,A138:F147,6,FALSE) -> -0.3 | E164: =VLOOKUP(B163,A138:F147,6,FALSE) -> 0.2 | G164: H | H164: =VLOOKUP(B162,A138:F147,6,FALSE) -> -0.3 | I164: =VLOOKUP(B163,A138:F147,6,FALSE) -> 0.2
C165: I | D165: =VLOOKUP(B162,A138:H147,8,FALSE) -> -0.5 | E165: =VLOOKUP(B163,A138:H147,8,FALSE) -> -0.5 | G165: I | H165: =VLOOKUP(B162,A138:H147,8,FALSE) -> -0.5 | I165: =VLOOKUP(B163,A138:H147,8,FALSE) -> -0.5
C166: J | D166: =VLOOKUP(B162,A138:J147,10,FALSE) -> -1 | E166: =VLOOKUP(B163,A138:J147,10,FALSE) -> -1 | G166: J | H166: =VLOOKUP(B162,A138:J147,10,FALSE) -> -1 | I166: =VLOOKUP(B163,A138:J147,10,FALSE) -> -1
C167: K | D167: =VLOOKUP(B162,A137:L147,12,FALSE) -> -1.2 | E167: =VLOOKUP(B163,A137:L147,12,FALSE) -> -1.2 | G167: K | H167: =VLOOKUP(B162,A137:L147,12,FALSE) -> -1.2 | I167: =VLOOKUP(B163,A137:L147,12,FALSE) -> -1.2
C168: L | D168: =VLOOKUP(B162,A138:N147,14,FALSE) -> -1.4 | E168: =VLOOKUP(B163,A138:N147,14,FALSE) -> -1.4 | G168: L | H168: =VLOOKUP(B162,A138:N147,14,FALSE) -> -1.4 | I168: =VLOOKUP(B163,A138:N147,14,FALSE) -> -1.4
C169: M | D169: =VLOOKUP(B162,A138:P147,16,FALSE) -> -0.6 | E169: =VLOOKUP(B163,A138:P147,16,FALSE) -> -0.6 | G169: M | H169: =VLOOKUP(B162,A138:P147,16,FALSE) -> -0.6 | I169: =VLOOKUP(B163,A138:P147,16,FALSE) -> -0.6
C170: N | D170: =VLOOKUP(B162,A138:R147,18,FALSE) -> -0.3 | E170: =VLOOKUP(B163,A138:R147,18,FALSE) -> -0.3 | G170: N | H170: =VLOOKUP(B162,A138:R147,18,FALSE) -> -0.3 | I170: =VLOOKUP(B163,A138:R147,18,FALSE) -> -0.3
Q181: 5zj5h

Sheet Explication
B4: Ce fichier Excel permet le calcul des charges de vent selon l’Eurocode ; il intègre les zones de vent de l’Allemagne comme exemple et a été adapté pour une utilisation au Maroc.
B5: Il s’agit d’un outil simplifié couvrant les cas les plus courants, tandis qu’un autre fichier séparé traitera les situations particulières.
B6: L’utilisateur n’a qu’à remplir les cellules jaunes et choisir entre le Maroc et l’Allemagne, avec la possibilité d’adapter la vitesse du vent et les textes selon ses besoins.
D14: Choix Mroc-Allemagne
